Cogmind - Beta 14 @@@ ROGUE MODE // 2024.09.30 @ 13:33:13 Player: Aneyh Result: Self-destructed Performance ------------- Evolutions (1) 500 Regions Visited (3) 600 Robots Destroyed (27) 135 Value Destroyed (709) 709 Prototype IDs (1) 20 Alien Tech Used (0) 0 Bonus (0) 0 TOTAL SCORE: 1964 Bonus ------- None Cogmind --------- Core Integrity 16/400 Matter 300/300 Energy 250/250 System Corruption 0% Temperature Cool (0) Movement Walking (260) Ox2 Location -9/Mines Parts ------- > --- POWER (1) -------- Ion Engine > --- PROPULSION (2) --- Aluminum Leg Aluminum Leg > --- UTILITY (4) ------ High-capacity Storage Unit Visual Processing Unit Signal Interpreter Light Armor Plating > --- WEAPON (2) ------- Advanced Beam Cannon Hammer > --- INVENTORY (20) --- Improved Treads Improved Treads Improved Treads Aluminum Leg Aluminum Leg Medium Matter Pod (0) Visual Processing Unit Visual Processing Unit Terrain Scanner Terrain Scan Processor Seismic Detector ECM Suite EM Pulse Gun Small Laser Small Laser Beam Rifle Advanced Beam Cannon Light Assault Rifle Light Assault Rifle Mining Laser Peak State ------------ > --- POWER ------------ Ion Engine > --- PROPULSION ------- Aluminum Leg Aluminum Leg > --- UTILITY ---------- High-capacity Storage Unit Visual Processing Unit Signal Interpreter Light Armor Plating > --- WEAPON ----------- Advanced Beam Cannon Hammer > --- INVENTORY -------- Light Ion Engine Aluminum Leg Aluminum Leg Terrain Scanner ECM Suite EM Pulse Gun Small Laser Small Laser Small Laser Advanced Beam Cannon Advanced Beam Cannon Light Assault Rifle Light Assault Rifle Light Assault Rifle Light Assault Rifle Light Assault Rifle Light Assault Rifle Mining Laser [Rating: 14] Favorites ----------- Power Light Ion Engine Engine Light Ion Engine Propulsion Aluminum Leg Leg Aluminum Leg Utility High-capacity Storage Unit Device Sensor Array Storage High-capacity Storage Unit Processor Visual Processing Unit Protection Light Armor Plating Weapon Light Assault Rifle Energy Gun Small Laser Energy Cannon Advanced Beam Cannon Ballistic Gun Light Assault Rifle Impact Weapon Hammer Build | -11 -10 -9 -9 ------- Run | Yrd Mat Mat Min Slots Evolved 2 | . . 2 . Power . | . . . . Propulsion . | . . . . Utility 2 | . . 2 . Weapon . | . . . . Parts Attached 27 | 6 6 15 . Power 5 | 1 2 2 . Engine 5 | 1 2 2 . Core . | . . . . Reactor . | . . . . Propulsion 7 | 2 1 4 . Treads . | . . . . Leg 7 | 2 1 4 . Wheel . | . . . . Hover . | . . . . Flight . | . . . . Utility 6 | 1 2 3 . Device 1 | . . 1 . Storage 2 | 1 1 . . Processor 2 | . 1 1 . Hackware . | . . . . Protection 1 | . . 1 . Artifact . | . . . . Weapon 9 | 2 1 6 . Energy Gun 1 | . . 1 . Energy Cannon 1 | . . 1 . Ballistic Gun 5 | 2 1 2 . Ballistic Cannon . | . . . . Launcher . | . . . . Special Weapon . | . . . . Impact Weapon 2 | . . 2 . Slashing Weapon . | . . . . Piercing Weapon . | . . . . Special Melee Weapon . | . . . . Unidentified Prototypes 1 | . . 1 . Parts Lost 7 | . 1 6 . Power 2 | . 1 1 . Propulsion 2 | . . 2 . Utility 1 | . . 1 . Weapon 2 | . . 2 . Highest Loss Streak 6 | . 1 6 . To Critical Strikes . | . . . . Average Slot Usage (%) 91 | . 90 92 100 Engine 11 | . 13 9 11 Leg 25 | . 27 21 22 Storage 12 | . 14 11 11 Processor 12 | . 5 22 22 Protection 2 | . . 4 11 Energy Cannon 2 | . . 4 11 Ballistic Gun 18 | . 27 6 . Impact Weapon 4 | . . 9 11 Peak Build Rating 14 | 6 9 14 14 Average Rating 9 | 3 7 11 14 On Entrance 7 | . 6 9 14 Naked Turns . | . . . . Heaviest Build 54 | 10 45 54 54 Greatest Support 20 | 20 20 20 20 Greatest Overweight (x) 2 | . 2 2 2 Average Overweight (x) 1 | . 1 2 2 Largest Inventory Capacity 20 | 8 20 20 20 Average Capacity 17 | 6 15 20 20 Most Carried 20 | 5 17 20 20 Average Carried 12 | 3 9 16 20 Final Capacity 20 | 8 20 20 20 Final Carried 20 | 4 17 20 20 Class Distribution -------------------- 56% | Mutant 38% | Scavenger-Mutant Dominant Class ---------------- Mutant | -10/Materials Scavenger-Mutant | -9/Materials Scavenger-Mutant | -9/Mines Resources | -11 -10 -9 -9 ----------- Run | Yrd Mat Mat Min Matter Collected 610 | 219 206 185 . Remotely . | . . . . Salvage Created 896 | . 305 591 . Parts 50 | . 21 29 . Haulers Intercepted 2 | . 1 1 . Recyclers Shooed . | . . . . Parts Field Recycled . | . . . . Retrieved Matter . | . . . . Parts Self-Destructed . | . . . . Prevented . | . . . . Kills | -11 -10 -9 -9 ------- Run | Yrd Mat Mat Min Combat Hostiles Destroyed 22 | . 9 13 . Melee 2 | . . 2 . Guns 15 | . 9 6 . Cannons 2 | . . 2 . AOE 2 | . . 2 . Classes Destroyed 7 | . 4 3 . Worker 1 | . . 1 . Hauler 2 | . 1 1 . Watcher 2 | . 2 . . Swarmer 6 | . 6 . . Grunt 13 | . 3 10 . Brawler 2 | . . 2 . Sentry 1 | . . 1 . Best Kill Streak 5 | . 3 5 . Combat Bots Only 4 | . 3 4 . Max Kills in Single Turn 3 | . 1 3 . Gunslinging . | . . . . Exploded 2 | . . 2 . Melee 1 | . . 1 . Uniques/NPCs Destroyed . | . . . . Combat | -11 -10 -9 -9 -------- Run | Yrd Mat Mat Min Hostile Shots Fired 149 | . 69 80 . Missed 30 | . 17 13 . Damage Taken 1466 | . 503 963 . Core 608 | . 224 384 . Absorbed by Shields . | . . . . Core Remaining (%) 55 | 100 10 . . Volleys Fired 115 | . 60 55 . Largest 2 | . 2 2 . Hottest 68 | . 40 68 . Shots Fired 187 | . 118 69 . Gun 177 | . 118 59 . Cannon 10 | . . 10 . Launcher . | . . . . Special . | . . . . Kinetic 166 | . 118 48 . Thermal 21 | . . 21 . Explosive . | . . . . Electromagnetic . | . . . . Robot Hit Streak 10 | . 9 10 . Robot Miss Streak 9 | . 9 7 . Penetration Max . | . . . . Secondary Targets 1 | . 1 . . Max Gunslinging Chain 1 | . 1 . . Shots Hit Robots 99 | . 53 46 . Core Hits 47 | . 24 23 . Critical Kills 1 | . . 1 . Critical Parts Destroyed 1 | . . 1 . Critical Strikes 2 | . . 2 . Smash 2 | . . 2 . Melee Attacks 11 | . . 11 . Impact 11 | . . 11 . Slashing . | . . . . Piercing . | . . . . Sneak Attacks 1 | . . 1 . Combat Hostiles . | . . . . Follow-up Attacks . | . . . . Damage Inflicted 1271 | . 446 825 . Guns 773 | . 446 327 . Cannons 41 | . . 41 . Explosions 219 | . . 219 . Melee 238 | . . 238 . Ramming . | . . . . Kinetic 683 | . 446 237 . Thermal 350 | . . 350 . Explosive . | . . . . Electromagnetic . | . . . . Impact 238 | . . 238 . Slashing . | . . . . Piercing . | . . . . Highest Corruption . | . . . . Average Corruption . | . . . . Corruption Purged . | . . . . Corruption Blocked . | . . . . Overload Shots . | . . . . Overflow Damage 85 | . . 85 . Projectiles . | . . . . Explosions . | . . . . Melee 85 | . . 85 . Knockbacks 1 | . . 1 . Impact 1 | . . 1 . Kinetic . | . . . . Secondary . | . . . . Self-Inflicted Damage 212 | . . 212 . Shots 2 | . . 2 . Rammed . | . . . . Targets Rammed . | . . . . Kicked . | . . . . Crushed . | . . . . Highest Temperature 152 | . 25 152 . Average Temperature 38 | . 13 45 . Received Heat Transfer 474 | . 72 402 . Siege Activations . | . . . . Robots Corrupted 2 | . . 2 . Combat Hostiles 1 | . . 1 . Parts Fried 2 | . . 2 . Impact Corruptions 2 | . . 2 . Robots Melted . | . . . . Combat Hostiles . | . . . . Parts Melted 2 | . . 2 . Heat Transferred 424 | . . 424 . Parts Sabotaged . | . . . . Parts Stolen . | . . . . Parts Stripped . | . . . . Power Chain Reactions . | . . . . Alert | -11 -10 -9 -9 ------- Run | Yrd Mat Mat Min Peak Influence 259 | . 139 259 100 Initial 100 | . . 9 100 Average 94 | . 38 174 100 Maximum Alert Level 1 | . . 1 . Low Security (%) 81 | 100 100 54 100 Level 1 18 | . . 45 . Level 2 . | . . . . Level 3 . | . . . . Level 4 . | . . . . Level 5 . | . . . . High Security . | . . . . Max Security . | . . . . Squads Dispatched 2 | . 1 1 . Investigation . | . . . . Extermination . | . . . . Reinforcement 2 | . 1 1 . Assault . | . . . . Garrison . | . . . . Intercept . | . . . . Searches Triggered . | . . . . Construction Impeded . | . . . . Haulers Reinforced . | . . . . Active Scanning Responses . | . . . . Cargo Convoy Interrupts . | . . . . Stealth | -11 -10 -9 -9 --------- Run | Yrd Mat Mat Min Distress Signals 4 | . 3 1 . Communications Jammed . | . . . . Distress Signals . | . . . . Times Spotted 41 | . 19 22 . Peak Tracking Total 5 | . 4 5 . Tactical Retreats 1 | . . 1 . Traps | -11 -10 -9 -9 ------- Run | Yrd Mat Mat Min Traps Triggered 1 | . 1 . . Indirectly . | . . . . Trap Hack Attempts . | . . . . Triggered . | . . . . Disarmed . | . . . . Reprogrammed . | . . . . Reused . | . . . . Traps Extracted . | . . . . Installed . | . . . . Triggered . | . . . . Machines | -11 -10 -9 -9 ---------- Run | Yrd Mat Mat Min Machines Disabled 4 | . . 4 . Max in Single Turn 2 | . . 2 . Machines Repaired . | . . . . Machines Dismantled . | . . . . Machines Sabotaged . | . . . . Overloaded Fab Kills . | . . . . Hacking | -11 -10 -9 -9 --------- Run | Yrd Mat Mat Min Machines Accessed 3 | . 2 1 . Terminals 3 | . 2 1 . Fabricators . | . . . . Repair Stations . | . . . . Recycling Units . | . . . . Scanalyzers . | . . . . Garrison Access . | . . . . Total Hacks 5 | . 4 1 . Successful 4 | . 3 1 . Failed 1 | . 1 . . Catastrophic . | . . . . Database Lockouts . | . . . . Manual . | . . . . Terminals 5 | . 4 1 . Fabricators . | . . . . Repair Stations . | . . . . Recycling Units . | . . . . Scanalyzers . | . . . . Garrison Access . | . . . . Terminal Hacks 4 | . 3 1 . Robot Analysis 1 | . 1 . . Alert Level 1 | . 1 . . Unreport Threat 1 | . 1 . . Locate Traps 1 | . . 1 . Fabricator Hacks . | . . . . Repair Station Hacks . | . . . . Recycling Unit Hacks . | . . . . Scanalyzer . | . . . . Garrison Access Hacks . | . . . . Unauthorized Hacks . | . . . . Terminals . | . . . . Fabricators . | . . . . Repair Stations . | . . . . Recycling Units . | . . . . Scanalyzers . | . . . . Garrison Access . | . . . . Data Cores Recovered . | . . . . Used . | . . . . Hacking Detections 1 | . . 1 . Full Trace Events . | . . . . Feedback Events . | . . . . Feedback Blocked . | . . . . Robot Schematics Acquired . | . . . . Robots Built . | . . . . Authchips . | . . . . Time . | . . . . Total Robot Build Rating . | . . . . Part Schematics Acquired . | . . . . Parts Built . | . . . . Authchips . | . . . . Time . | . . . . Total Part Build Rating . | . . . . Parts Repaired . | . . . . Time . | . . . . Parts Recycled . | . . . . Recycled Matter . | . . . . Retrieved Matter . | . . . . Retrieved Components . | . . . . Parts Scanalyzed . | . . . . Part Schematics Acquired . | . . . . Parts Damaged . | . . . . Bothacking | -11 -10 -9 -9 ------------ Run | Yrd Mat Mat Min Used RIF Installer . | . . . . Robots Hacked . | . . . . Non-combat . | . . . . Combat . | . . . . Robot Hacks Applied . | . . . . Relay Couplers Released . | . . . . Fabnet Peak Effective % . | . . . . Robots Rewired . | . . . . Allies Hacked . | . . . . Hacks Repelled . | . . . . Allies | -11 -10 -9 -9 -------- Run | Yrd Mat Mat Min Total Allies . | . . . . Largest Group . | . . . . Highest-Rated Group . | . . . . Highest-Rated Ally . | . . . . Total Orders . | . . . . Ally Attacks . | . . . . Total Damage . | . . . . Kills . | . . . . Allies Corrupted . | . . . . Allies Melted . | . . . . Intel | -11 -10 -9 -9 ------- Run | Yrd Mat Mat Min Robot Analysis Total 1 | . 1 . . Derelict Logs Recovered . | . . . . Drone Launches . | . . . . Drone Recoveries . | . . . . Exploration | -11 -10 -9 -9 ------------- Run | Yrd Mat Mat Min Turns Passed 1855 | 58 1001 777 19 Spaces Moved 632 | 40 362 223 7 Core 7 | 7 . . . Treads . | . . . . Legs 625 | 33 362 223 7 Wheels . | . . . . Hover . | . . . . Flight . | . . . . Fastest Speed 50 | 50 120 260 260 Average Speed 212 | 107 193 260 260 Slowest Speed 260 | 120 260 260 260 Overloaded Moves . | . . . . Propulsion Burnouts . | . . . . Robots Hopped . | . . . . Cave-ins Triggered . | . . . . Exploration Rate (%) 21 | 3 46 33 4 Regions Visited 3 Branch Regions 1 Pre-discovered Areas . | . . . . Known Exits Taken 1 | . . 1 . Unknown Exits Taken 2 | 1 1 . . Scrap Searched . | . . . . Spaces Dug . | . . . . Terrain Destroyed 37 | . . 37 . Melee . | . . . . Projectile . | . . . . AOE 37 | . . 37 . Terrain Rammed . | . . . . Walls Destroyed . | . . . . Machines Disabled . | . . . . Actions | -11 -10 -9 -9 --------- Run | Yrd Mat Mat Min Total 974 | 55 568 344 7 Wait 130 | . 120 10 . Move 629 | 39 361 222 7 Hop . | . . . . Pick Up 49 | 10 18 21 . Fast Attach 3 | . 3 . . Attach 17 | 6 3 8 . Detach . | . . . . Swap 7 | . . 7 . Drop 13 | . 3 10 . Fire 115 | . 60 55 . Melee 11 | . . 11 . Ram . | . . . . Kick . | . . . . Crush . | . . . . Escape Stasis . | . . . . Rewire . | . . . . Trap . | . . . . Miscellaneous . | . . . . Route ------- -11/Scrapyard -10/Materials -9/Materials -9/Mines History --------- Turn | Location | Event 5 | -11/Scrapyard | Discovered new exit (range 16) 59 | -11/Scrapyard | Entered Materials 312 | -10/Materials | Build established: Mutant 363 | -10/Materials | Core integrity fell below 50% 420 | -10/Materials | Core integrity fell below 20% 467 | -10/Materials | Discovered new exit (range 14) 1060 | -10/Materials | Entered another Materials area 1060 | -9/Materials | Evolved 2 slots: Utility x2 1163 | -9/Materials | Core integrity fell below 50% 1187 | -9/Materials | Lost 6 parts (1p2n1u2w) 1225 | -9/Materials | Core integrity fell below 20% 1467 | -9/Materials | Build established: Scavenger-Mutant 1786 | -9/Materials | Discovered new exit (range 16) 1834 | -9/Materials | Identified exit to Mines 1837 | -9/Materials | Entered Mines 1856 | -9/Mines | Self-destructed Last Messages --------------- Atomic Centrifuge disabled. G-34 Mercenary destroyed. Dropped Lgt. Ion Engine. K-01 Serf collects debris. Acquired Terrain Scan Processor. K-01 Serf collects debris. K-01 Serf cleans the Electrolysis Chamber. K-01 Serf collects debris. K-01 Serf cleans the Atomic Centrifuge. K-01 Serf collects debris. EXIT=FOUND K-01 Serf cleans the Atomic Centrifuge. K-01 Serf collects debris. K-01 Serf cleans the Atomic Centrifuge. U-05 Engineer lays Concrete. Dropped Sml. Laser. Acquired Med. Matter Pod. EXIT=IDENTIFIED: MINES LOCATION=MINES GOAL=ESCAPE Map ----- +----------------------------------------------------+ | | | | | | | | | | | | | | | | | ?????????????????????????????????? | | ?????????????????????????????????? | | ?????????????????????????????????? | | ?????????????????????????????????? | | ?????????????????????????????????? | | ?????????????????????????????????? | | ?????????????????????????????????? | | ?????????????????????????????????? | | ?????????????????????????????????? | | ?????????????????????????????????? | | ?????????????????????????????????? | | ?????????????????????????????????? | | ?????????????????????????????????? | | ?????????????????????????????????? | | ????####?????????????????????????? | | ??### ##????????????????????????? | | ?## ######## #??????????????? | | ?# """ @ #??????????????? | | ?# """ ##########??????????????? | | ?# """ ##??????????????????????? | | ?# #??????????????????????? | | ?# #??????????????????????? | | ?# ##??????????????????????? | | ?## ##???????????????????????? | | ??# #????????????????????????? | | ??## #????????????????????????? | | ???## ##????????????????????????? | | ????####?????????????????????????? | | ?????????????????????????????????? | | ?????????????????????????????????? | | ?????????????????????????????????? | | ?????????????????????????????????? | | ?????????????????????????????????? | | ?????????????????????????????????? | | ?????????????????????????????????? | | ?????????????????????????????????? | | ?????????????????????????????????? | | ?????????????????????????????????? | | ?????????????????????????????????? | | ?????????????????????????????????? | | ?????????????????????????????????? | | ?????????????????????????????????? | +----------------------------------------------------+ Best States ------------- Heat Dissipation 28 Energy Generation 10 Energy Capacity 250 Matter Stores 300 Matter Capacity 300 Sight Range 18 Robot Scan Range 14 Terrain Scan Density 10 Armor Coverage 150 Evasion (%) 55 Item Schematics ----------------- None Robot Schematics ------------------ None Fabricated ------------ Nothing Alien Tech Used ----------------- None Achievements -------------- None Challenges ------------ None Game ------ Seed CentriumAerolevRouter Manual? 0 Play Time 00:26:59 Cumulative 24.9 hours Start 2024.09.30 @ 13:04:36 End 2024.09.30 @ 13:33:13 Sessions 1 Manual Loads 0 Difficulty Rogue Special Mode None Game No. 34 Rogue 31 Adventurer 0 Explorer 3 Win Type - Total 0 Types 0/0/0/0/0/0/0/0/0 Lore% 6 Gallery% 18 Achievement% 16 Wizard Run 0 Options --------- Layout 1 ASCII 0 Keyboard 0 Movement Mouse Keybinds 0 Fullscreen 1 Font 18/SmallcapsGlow Map View 54x44 Zoom Use 0% Tactical HUD 0 Map Filters NONE Filters NONE Steam 1 RUN: 0c46528d-11af-4b43-a417-b851bdda6a15